fUST/lending_fUST_20241121
["ID","MTS","AMOUNT","RATE_DAILY","PERIOD"]
[342906473,1732200644708,-1508.12,0.00023013,2]
[342906474,1732200644717,-1026.92,0.00023013,2]
[342906475,1732200644727,-151.0,0.00023013,7]
[342906476,1732200644736,-151.081521,0.00023013,7]
[342906477,1732200644745,-151.0,0.00023013,7]
[342906478,1732200644755,-500.0,0.00023013,2]
[342906479,1732200644764,-151.0,0.00023013,7]
[342906480,1732200644775,-296.89474998,0.00023013,2]
[342906481,1732200644784,-851.18,0.00023013,2]
[342906482,1732200644793,-151.0,0.00023013,7]
[342906483,1732200644803,-1370.61,0.00023013,2]
[342906484,1732200644812,-1211.86,0.00023013,2]
[342906485,1732200644821,-151.0,0.00023013,7]
[342906486,1732200644831,-500.0,0.00023013,2]
[342906487,1732200644840,-151.0,0.00023013,7]
[342906488,1732200644854,-795.82,0.00023013,2]
[342906489,1732200644863,-653.45,0.00023013,2]
[342906490,1732200644873,-151.0,0.00023013,7]
[342906491,1732200644882,-1390.24,0.00023013,2]
[342906492,1732200644891,-500.0,0.00023013,2]
[342906493,1732200644901,-151.0,0.00023013,7]
[342906494,1732200644910,-500.0,0.00023013,2]
[342906495,1732200644919,-500.0,0.00023013,2]
[342906496,1732200644929,-645.33,0.00023013,2]
[342906497,1732200644938,-500.0,0.00023013,2]
[342906498,1732200644948,-151.0,0.00023013,7]
[342906499,1732200644957,-151.0,0.00023013,7]
[342906500,1732200644968,-500.0,0.00023013,2]
[342906501,1732200644978,-500.0,0.00023013,2]
[342906502,1732200644987,-500.0,0.00023013,2]
[342906503,1732200644996,-151.0,0.00023013,7]
[342906504,1732200645006,-500.0,0.00023013,2]
[342906505,1732200645015,-500.0,0.00023013,2]
[342906506,1732200645025,-500.0,0.00023013,2]
[342906507,1732200645034,-928.36,0.00023013,2]
[342906508,1732200645043,-151.0,0.00023013,7]
[342906509,1732200645053,-285.697907,0.00023013,7]
[342906510,1732200645062,-151.0,0.00023013,7]
[342906511,1732200645072,-574.43,0.00023013,2]
[342906512,1732200645086,-619.54,0.00023013,2]
[342906513,1732200645098,-656.62,0.00023013,2]
[342906514,1732200645108,-500.0,0.00023013,2]
[342906515,1732200645118,-793.51,0.00023013,2]
[342906516,1732200645127,-500.0,0.00023013,2]
[342906517,1732200645136,-151.0,0.00023013,7]
[342906518,1732200645145,-151.0,0.00023013,7]
[342906519,1732200645155,-151.0,0.00023013,7]
[342906520,1732200645165,-568.25,0.00023013,2]
[342906521,1732200645175,-534.73,0.00023013,2]
[342906522,1732200645185,-500.0,0.00023013,2]
[342906523,1732200645194,-509.23,0.00023013,2]
[342906524,1732200645204,-1296.98,0.00023013,2]
[342906525,1732200645214,-1003.66,0.00023013,2]
[342906526,1732200645223,-981.68,0.00023013,2]
[342906527,1732200645233,-927.61,0.00023013,2]
[342906528,1732200645243,-500.0,0.00023013,2]
[342906529,1732200645253,-925.44,0.00023013,2]
[342906530,1732200645263,-151.0,0.00023013,7]
[342906531,1732200645273,-500.0,0.00023013,2]
[342906532,1732200645283,-752.78,0.00023013,2]
[342906533,1732200645293,-500.23,0.00023013,2]
[342906534,1732200645303,-535.24,0.00023013,2]
[342906535,1732200645313,-500.0,0.00023013,2]
[342906536,1732200645323,-1249.29,0.00023013,2]
[342906537,1732200645332,-1383.2,0.00023013,2]
[342906538,1732200645342,-701.33,0.00023013,2]
[342906539,1732200645355,-500.0,0.00023013,2]
[342906540,1732200645364,-151.0,0.00023013,7]
[342906541,1732200645374,-826.31,0.00023013,2]
[342906542,1732200645383,-1189.47,0.00023013,2]
[342906543,1732200645392,-151.0,0.00023013,7]
[342906544,1732200645402,-500.0,0.00023013,2]
[342906545,1732200645412,-151.0,0.00023013,7]
[342906546,1732200645422,-509.5424262,0.00023013,2]
[342906547,1732200645432,-298.47468517,0.00023013,2]
[342906548,1732200645441,-10039.04,0.00023013,2]
[342906549,1732200645451,-807.4,0.00023013,2]
[342906550,1732200645461,-1630.93,0.00023013,2]
[342906551,1732200645471,-158.110725,0.00023013,7]
[342906552,1732200645481,-500.0,0.00023013,2]
[342906553,1732200645490,-795.38,0.00023013,2]
[342906554,1732200645500,-500.0,0.00023013,2]
[342906555,1732200645510,-151.0,0.00023013,7]
[342906556,1732200645519,-500.0,0.00023013,2]
[342906557,1732200645529,-5687.01,0.00023013,2]
[342906558,1732200645538,-500.0,0.00023013,2]
[342906559,1732200645548,-1357.59,0.00023013,2]
[342906560,1732200645557,-500.0,0.00023013,2]
[342906561,1732200645567,-151.0,0.00023013,7]
[342906562,1732200645576,-493.456751,0.00023013,7]
[342906563,1732200645586,-151.0,0.00023013,7]
[342906564,1732200645596,-4042.62,0.00023013,2]
[342906565,1732200645605,-500.0,0.00023013,2]
[342906566,1732200645727,-32605.67,0.00023013,2]
[342906567,1732200645737,-500.0,0.00023013,2]
[342906569,1732200645748,-493.456751,0.00023013,7]
[342906571,1732200645758,-151.0,0.00023013,7]
[342906572,1732200645768,-594.83,0.00023013,2]
[342906573,1732200645778,-151.0,0.00023013,7]
[342906574,1732200645788,-634.91,0.00023013,2]
[342906575,1732200645797,-500.0,0.00023013,2]
[342906576,1732200645807,-500.0,0.00023013,2]
[342906577,1732200645816,-200.0,0.00023013,2]
[342906578,1732200645826,-500.0,0.00023013,2]
[342906579,1732200645835,-500.0,0.00023013,2]
[342906580,1732200645848,-505.73,0.00023013,2]
[342906581,1732200645858,-858.69,0.00023013,2]
[342906582,1732200645868,-612.48,0.00023013,2]
[342906583,1732200645878,-536.213167,0.00023013,7]
[342906585,1732200645888,-2090.7,0.00023013,2]
[342906587,1732200645898,-5650.4,0.00023013,2]
[342906589,1732200645907,-604.76,0.00023013,2]
[342906591,1732200645917,-536.213167,0.00023013,7]
[342906593,1732200645927,-151.0,0.00023013,7]
[342906595,1732200645936,-151.0,0.00023013,7]
[342906597,1732200645946,-151.0,0.00023013,7]
[342906599,1732200645955,-500.0,0.00023013,2]
[342906601,1732200645964,-3018.72,0.00023013,2]
[342906603,1732200645974,-500.0,0.00023013,2]
[342906604,1732200645983,-500.0,0.00023013,2]
[342906606,1732200645993,-500.0,0.00023013,2]
[342906608,1732200646002,-1242.48,0.00023013,2]
[342906610,1732200646012,-500.0,0.00023013,2]
[342906612,1732200646022,-7102.02,0.00023013,2]
[342906614,1732200646031,-151.0,0.00023013,7]
[342906616,1732200646040,-500.0,0.00023013,2]
[342906618,1732200646050,-731.24,0.00023013,2]
[342906620,1732200646059,-500.0,0.00023013,2]
[342906622,1732200646069,-500.0,0.00023013,2]
[342906624,1732200646080,-1955.78,0.00023013,2]
[342906626,1732200646089,-151.0,0.00023013,7]
[342906628,1732200646100,-1391.16,0.00023013,2]
[342906630,1732200646110,-1504.17,0.00023013,2]
[342906632,1732200646121,-389.702846,0.00023013,7]
[342906634,1732200646131,-1389.53,0.00023013,2]
[342906636,1732200646139,-389.702846,0.00023013,7]
[342906638,1732200646149,-151.0,0.00023013,7]
[342906640,1732200646160,-434.7554563,0.00023013,2]
[342906642,1732200646169,-500.0,0.00023013,2]
[342906644,1732200646179,-217.790817,0.00023013,7]
[342906646,1732200646188,-500.0,0.00023013,2]
[342906647,1732200646197,-1229.83,0.00023013,2]
[342906649,1732200646207,-1659.72,0.00023013,2]
[342906650,1732200646216,-694.49,0.00023013,2]
[342906652,1732200646225,-151.0,0.00023013,7]
[342906654,1732200646234,-151.0,0.00023013,7]
[342906656,1732200646244,-151.0,0.00023013,7]
[342906658,1732200646253,-500.0,0.00023013,2]
[342906660,1732200646263,-665.48,0.00023013,2]
[342906662,1732200646272,-761.08,0.00023013,2]
[342906663,1732200646281,-500.0,0.00023013,2]
[342906664,1732200646290,-151.0,0.00023013,7]
[342906665,1732200646300,-851.55,0.00023013,2]
[342906666,1732200646310,-151.0,0.00023013,7]
[342906667,1732200646320,-3540.28,0.00023013,2]
[342906668,1732200646330,-265.0,0.00023014,2]
[342906669,1732200646339,-500.0,0.00023073,2]
[342906670,1732200646351,-500.0,0.00023073,2]
[342906671,1732200646360,-237.0,0.00023156,3]
[342906672,1732200646370,-999.999999,0.000232,2]
[342906673,1732200646380,-561.10567305,0.00023287,2]
[342906674,1732200646390,-500.0,0.00023287,2]
[342906675,1732200646399,-300.0,0.00023287,2]
[342906676,1732200646410,-500.0,0.00023287,2]
[342906677,1732200646420,-500.0,0.00023287,2]
[342906678,1732200646432,-200.24,0.00023287,2]
[342906679,1732200646442,-500.0,0.00023287,2]
[342906680,1732200646451,-200.24,0.00023287,2]
[342906681,1732200646460,-500.0,0.00023287,2]
[342906682,1732200646469,-598.29146453,0.00023287,2]
[342906683,1732200646478,-500.0,0.00023287,2]
[342906684,1732200646488,-430.46713049,0.00023287,2]
[342906685,1732200646497,-151.0,0.00023287,7]
[342906686,1732200646507,-500.0,0.00023287,2]
[342906687,1732200646516,-500.0,0.00023287,2]
[342906688,1732200646525,-151.0,0.00023287,7]
[342906689,1732200646535,-151.0,0.00023287,7]
[342906691,1732200646544,-830.16,0.00023287,2]
[342906692,1732200646553,-500.0,0.00023287,2]
[342906694,1732200646562,-1591.45,0.00023287,2]
[342906696,1732200646572,-151.0,0.00023287,7]
[342906697,1732200646581,-500.0,0.00023287,2]
[342906698,1732200646590,-500.0,0.00023287,2]
[342906699,1732200646602,-500.0,0.00023287,2]
[342906700,1732200646611,-151.0,0.00023287,7]
[342906701,1732200646621,-500.0,0.00023287,2]
[342906702,1732200646630,-500.0,0.00023287,2]
[342906703,1732200646640,-1349.72,0.00023287,2]
[342906704,1732200646649,-151.0,0.00023287,7]
[342906705,1732200646659,-532.05,0.00023287,2]
[342906706,1732200646668,-151.0,0.00023287,7]
[342906707,1732200646678,-500.0,0.00023287,2]
[342906708,1732200646687,-526.2,0.00023287,2]
[342906709,1732200646698,-500.0,0.00023287,2]
[342906710,1732200646708,-500.0,0.00023287,2]
[342906711,1732200646717,-500.0,0.00023287,2]
[342906712,1732200646726,-500.0,0.00023287,2]
[342906713,1732200646736,-505.05,0.00023287,2]
[342906714,1732200646745,-753.89,0.00023287,2]
[342906715,1732200646755,-211.329367,0.00023287,7]
[342906716,1732200646765,-525.0,0.00023287,2]
[342906717,1732200646774,-500.0,0.00023287,2]
[342906718,1732200646784,-791.56,0.00023287,2]
[342906719,1732200646793,-568.28,0.00023287,2]
[342906720,1732200646802,-500.0,0.00023287,2]
[342906721,1732200646812,-500.0,0.00023287,2]
[342906722,1732200646822,-500.0,0.00023287,2]
[342906723,1732200646832,-500.0,0.00023287,2]
[342906724,1732200646841,-867.92,0.00023287,2]
[342906725,1732200646854,-500.0,0.00023287,2]
[342906726,1732200646864,-500.0,0.00023287,2]
[342906727,1732200646873,-500.0,0.00023287,2]
[342906728,1732200646882,-500.0,0.00023287,2]
[342906729,1732200646892,-1155.56,0.00023287,2]
[342906730,1732200646902,-500.0,0.00023287,2]
[342906731,1732200646912,-500.0,0.00023287,2]
[342906732,1732200646921,-2432.92,0.00023287,2]
[342906733,1732200646931,-500.0,0.00023287,2]
[342906734,1732200646940,-500.0,0.00023287,2]
[342906735,1732200646949,-500.0,0.00023287,2]
[342906736,1732200646959,-362.01040128,0.00023287,2]
[342906737,1732200646969,-680.26,0.00023287,2]
[342906738,1732200646978,-500.0,0.00023287,2]
[342906739,1732200646987,-500.0,0.00023287,2]
[342906740,1732200646996,-1175.23,0.00023287,2]
[342906741,1732200647007,-616.6,0.00023287,2]
[342906742,1732200647016,-1310.86,0.00023287,2]
[342906743,1732200647027,-550.87,0.00023287,2]
[342906744,1732200647036,-500.0,0.00023287,2]
[342906745,1732200647046,-500.0,0.00023287,2]
[342906746,1732200647055,-765.85,0.00023287,2]
[342906747,1732200647064,-500.0,0.00023287,2]
[342906748,1732200647074,-500.0,0.00023287,2]
[342906749,1732200647086,-500.0,0.00023287,2]
[342906750,1732200647097,-634.94913729,0.00023287,2]
[342906751,1732200647106,-500.0,0.00023287,2]
[342906752,1732200647115,-500.0,0.00023287,2]
[342906753,1732200647126,-500.0,0.00023287,2]
[342906754,1732200647134,-789.24,0.00023287,2]
[342906755,1732200647143,-737.63,0.00023287,2]
[342906756,1732200647154,-655.02,0.00023287,2]
[342906757,1732200647163,-500.0,0.00023287,2]
[342906758,1732200647173,-1000.0,0.00023287,2]
[342906759,1732200647182,-500.0,0.00023287,2]
[342906760,1732200647191,-1193.82,0.00023287,2]
[342906761,1732200647200,-886.97,0.00023287,2]
[342906762,1732200647211,-500.0,0.00023287,2]
[342906763,1732200647220,-770.17,0.00023287,2]
[342906764,1732200647229,-500.0,0.00023287,2]
[342906765,1732200647240,-500.0,0.00023287,2]
[342906766,1732200647250,-500.0,0.00023287,2]
[342906767,1732200647260,-1753.88,0.00023287,2]
[342906768,1732200647269,-500.0,0.00023287,2]
[342906769,1732200647279,-1377.26,0.00023287,2]
[342906770,1732200647288,-500.0,0.00023287,2]
[342906771,1732200647298,-657.32,0.00023287,2]
[342906772,1732200647307,-1508.12,0.00023287,2]
[342906773,1732200647316,-1026.92,0.00023287,2]
[342906774,1732200647327,-500.0,0.00023287,2]
[342906775,1732200647336,-851.18,0.00023287,2]
[342906776,1732200647348,-1370.61,0.00023287,2]
[342906777,1732200647363,-1211.86,0.00023287,2]
[342906778,1732200647372,-500.0,0.00023287,2]
[342906779,1732200647382,-795.82,0.00023287,2]
[342906780,1732200647391,-653.45,0.00023287,2]
[342906781,1732200647401,-1390.24,0.00023287,2]
[342906782,1732200647410,-500.0,0.00023287,2]
[342906783,1732200647419,-500.0,0.00023287,2]
[342906784,1732200647428,-645.33,0.00023287,2]
[342906785,1732200647437,-500.0,0.00023287,2]
[342906786,1732200647447,-500.0,0.00023287,2]
[342906787,1732200647456,-500.0,0.00023287,2]
[342906788,1732200647465,-500.0,0.00023287,2]
[342906789,1732200647475,-500.0,0.00023287,2]
[342906790,1732200647484,-500.0,0.00023287,2]
[342906791,1732200647493,-500.0,0.00023287,2]
[342906792,1732200647502,-500.0,0.00023287,2]
[342906793,1732200647512,-928.36,0.00023287,2]
[342906794,1732200647522,-574.43,0.00023287,2]
[342906795,1732200647531,-619.54,0.00023287,2]
[342906796,1732200647541,-656.62,0.00023287,2]
[342906797,1732200647550,-500.0,0.00023287,2]
[342906798,1732200647559,-793.51,0.00023287,2]
[342906799,1732200647568,-500.0,0.00023287,2]
[342906800,1732200647577,-568.25,0.00023287,2]
[342906801,1732200647587,-534.73,0.00023287,2]
[342906802,1732200647597,-500.0,0.00023287,2]
[342906803,1732200647606,-509.23,0.00023287,2]
[342906804,1732200647615,-1296.98,0.00023287,2]
[342906805,1732200647624,-1003.66,0.00023287,2]
[342906806,1732200647633,-981.68,0.00023287,2]
[342906807,1732200647643,-927.61,0.00023287,2]
[342906808,1732200647652,-500.0,0.00023287,2]
[342906809,1732200647661,-925.44,0.00023287,2]
[342906810,1732200647671,-500.0,0.00023287,2]
[342906811,1732200647680,-752.78,0.00023287,2]
[342906812,1732200647689,-500.23,0.00023287,2]
[342906813,1732200647698,-535.24,0.00023287,2]
[342906814,1732200647708,-500.0,0.00023287,2]
[342906815,1732200647717,-1249.29,0.00023287,2]
[342906816,1732200647726,-1383.2,0.00023287,2]
[342906817,1732200647735,-701.33,0.00023287,2]
[342906818,1732200647744,-500.0,0.00023287,2]
[342906819,1732200647754,-826.31,0.00023287,2]
[342906820,1732200647763,-1189.47,0.00023287,2]
[342906821,1732200647772,-500.0,0.00023287,2]
[342906822,1732200647782,-10039.04,0.00023287,2]
[342906823,1732200647791,-807.4,0.00023287,2]
[342906824,1732200647802,-1630.93,0.00023287,2]
[342906825,1732200647811,-500.0,0.00023287,2]
[342906826,1732200647820,-795.38,0.00023287,2]
[342906827,1732200647830,-500.0,0.00023287,2]
[342906828,1732200647839,-500.0,0.00023287,2]
[342906829,1732200647851,-5687.01,0.00023287,2]
[342906830,1732200647860,-500.0,0.00023287,2]
[342906831,1732200647869,-1357.59,0.00023287,2]
[342906832,1732200647879,-500.0,0.00023287,2]
[342906833,1732200647888,-4042.62,0.00023287,2]
[342906834,1732200647897,-500.0,0.00023287,2]
[342906835,1732200647907,-32605.67,0.00023287,2]
[342906836,1732200647916,-500.0,0.00023287,2]
[342906837,1732200647925,-594.83,0.00023287,2]
[342906838,1732200647935,-634.91,0.00023287,2]
[342906839,1732200647944,-500.0,0.00023287,2]
[342906840,1732200647954,-500.0,0.00023287,2]
[342906841,1732200648080,-278.16848773,0.00023287,2]
[342906842,1732200648091,-500.0,0.00023287,2]
[342906843,1732200648106,-500.0,0.00023287,2]
[342906844,1732200648116,-505.73,0.00023287,2]
[342906845,1732200648126,-858.69,0.00023287,2]
[342906846,1732200648136,-612.48,0.00023287,2]
[342906847,1732200648146,-2090.7,0.00023287,2]
[342906848,1732200648157,-5650.4,0.00023287,2]
[342906849,1732200648168,-604.76,0.00023287,2]
[342906850,1732200648178,-500.0,0.00023287,2]
[342906851,1732200648188,-3018.72,0.00023287,2]
[342906852,1732200648198,-500.0,0.00023287,2]
[342906853,1732200648207,-500.0,0.00023287,2]
[342906854,1732200648217,-500.0,0.00023287,2]
[342906855,1732200648227,-1242.48,0.00023287,2]
[342906856,1732200648236,-500.0,0.00023287,2]
[342906857,1732200648246,-7102.02,0.00023287,2]
[342906858,1732200648255,-500.0,0.00023287,2]
[342906859,1732200648265,-731.24,0.00023287,2]
[342906860,1732200648275,-500.0,0.00023287,2]
[342906861,1732200648285,-500.0,0.00023287,2]
[342906862,1732200648295,-1955.78,0.00023287,2]
[342906863,1732200648305,-1391.16,0.00023287,2]
[342906864,1732200648315,-1504.17,0.00023287,2]
[342906865,1732200648325,-1389.53,0.00023287,2]
[342906866,1732200648335,-500.0,0.00023287,2]
[342906867,1732200648346,-500.0,0.00023287,2]
[342906868,1732200648357,-1229.83,0.00023287,2]
[342906869,1732200648367,-1659.72,0.00023287,2]
[342906870,1732200648377,-694.49,0.00023287,2]
[342906871,1732200648387,-282.3931247,0.00023287,2]
[342906872,1732200648397,-665.48,0.00023287,2]
[342906873,1732200648407,-761.08,0.00023287,2]
[342906874,1732200648416,-500.0,0.00023287,2]
[342906875,1732200648426,-851.55,0.00023287,2]
[342906876,1732200648436,-290.61283357,0.00023323,2]
[342906877,1732200648445,-160.0,0.00023374,2]
[342906878,1732200648454,-155.80361875,0.00023378,2]
[342906879,1732200648464,-262.62,0.00023461,2]
[342906880,1732200648474,-500.0,0.00023561,2]
[342906881,1732200648485,-515.95798724,0.00023561,2]
[342906882,1732200648495,-500.0,0.00023561,2]
[342906883,1732200648504,-500.0,0.00023561,2]
[342906884,1732200648514,-500.0,0.00023561,2]
[342906885,1732200648523,-169.54765146,0.00023561,2]
[342906886,1732200648533,-153.60259217,0.00023561,2]
[342906887,1732200648543,-500.0,0.00023561,2]
[342906888,1732200648553,-500.0,0.00023561,2]
[342906889,1732200648563,-500.0,0.00023561,2]
[342906890,1732200648572,-500.0,0.00023561,2]
[342906891,1732200648582,-830.16,0.00023561,2]
[342906892,1732200648592,-500.0,0.00023561,2]
[342906893,1732200648605,-1591.45,0.00023561,2]
[342906894,1732200648614,-500.0,0.00023561,2]
[342906895,1732200648624,-381.78506502,0.00023561,2]
[342906896,1732200648633,-500.0,0.00023561,2]
[342906897,1732200648642,-500.0,0.00023561,2]
[342906898,1732200648652,-500.0,0.00023561,2]
[342906899,1732200648661,-1349.72,0.00023561,2]
[342906900,1732200648671,-532.05,0.00023561,2]
[342906901,1732200648681,-500.0,0.00023561,2]
[342906902,1732200648691,-526.2,0.00023561,2]
[342906903,1732200648701,-500.0,0.00023561,2]
[342906904,1732200648710,-500.0,0.00023561,2]
[342906905,1732200648720,-500.0,0.00023561,2]
[342906906,1732200648729,-500.0,0.00023561,2]
[342906907,1732200648739,-505.05,0.00023561,2]
[342906908,1732200648751,-753.89,0.00023561,2]
[342906909,1732200648761,-525.0,0.00023561,2]
[342906910,1732200648771,-500.0,0.00023561,2]
[342906911,1732200648781,-791.56,0.00023561,2]
[342906912,1732200648792,-568.28,0.00023561,2]
[342906913,1732200648801,-500.0,0.00023561,2]
[342906914,1732200648812,-500.0,0.00023561,2]
[342906915,1732200648822,-500.0,0.00023561,2]
[342906916,1732200648832,-500.0,0.00023561,2]
[342906917,1732200648842,-867.92,0.00023561,2]
[342906918,1732200648859,-500.0,0.00023561,2]
[342906919,1732200648869,-500.0,0.00023561,2]
[342906920,1732200648880,-500.0,0.00023561,2]
[342906921,1732200648892,-500.0,0.00023561,2]
[342906922,1732200648903,-1155.56,0.00023561,2]
[342906923,1732200648913,-500.0,0.00023561,2]
[342906924,1732200648924,-500.0,0.00023561,2]
[342906925,1732200648933,-2432.92,0.00023561,2]
[342906926,1732200648944,-500.0,0.00023561,2]
[342906927,1732200648954,-511.57917956,0.00023561,2]
[342906928,1732200648965,-500.0,0.00023561,2]
[342906929,1732200648975,-680.26,0.00023561,2]
[342906930,1732200648984,-500.0,0.00023561,2]
[342906931,1732200648994,-500.0,0.00023561,2]
[342906932,1732200649004,-1175.23,0.00023561,2]
[342906933,1732200649014,-616.6,0.00023561,2]
[342906934,1732200649024,-1310.86,0.00023561,2]
[342906935,1732200649034,-550.87,0.00023561,2]
[342906936,1732200649044,-151.0,0.00023561,7]
[342906937,1732200649054,-500.0,0.00023561,2]
[342906938,1732200649064,-500.0,0.00023561,2]
[342906939,1732200649075,-765.85,0.00023561,2]
[342906940,1732200649089,-527.12224147,0.00023561,2]
[342906941,1732200649104,-500.0,0.00023561,2]
[342906942,1732200649113,-500.0,0.00023561,2]
[342906943,1732200649123,-500.0,0.00023561,2]
[342906944,1732200649134,-500.0,0.00023561,2]
[342906945,1732200649144,-500.0,0.00023561,2]
[342906946,1732200649155,-789.24,0.00023561,2]
[342906947,1732200649166,-737.63,0.00023561,2]
[342906948,1732200649176,-655.02,0.00023561,2]
[342906949,1732200649185,-500.0,0.00023561,2]
[342906950,1732200649195,-1000.0,0.00023561,2]
[342906951,1732200649204,-500.0,0.00023561,2]
[342906952,1732200649214,-1193.82,0.00023561,2]
[342906953,1732200649224,-886.97,0.00023561,2]
[342906954,1732200649233,-500.0,0.00023561,2]
[342906955,1732200649243,-770.17,0.00023561,2]
[342906956,1732200649252,-151.0,0.00023561,7]
[342906957,1732200649262,-500.0,0.00023561,2]
[342906958,1732200649271,-151.0,0.00023561,7]
[342906959,1732200649280,-152.027628,0.00023561,7]
[342906960,1732200649290,-500.0,0.00023561,2]
[342906961,1732200649300,-1753.88,0.00023561,2]
[342906962,1732200649310,-500.0,0.00023561,2]
[342906963,1732200649319,-151.0,0.00023561,7]
[342906964,1732200649329,-1377.26,0.00023561,2]
[342906965,1732200649339,-500.0,0.00023561,2]
[342906966,1732200649351,-657.32,0.00023561,2]
[342906967,1732200649360,-151.0,0.00023561,7]
[342906968,1732200649370,-1508.12,0.00023561,2]
[342906969,1732200649379,-1026.92,0.00023561,2]
[342906970,1732200649389,-151.0,0.00023561,7]
[342906971,1732200649399,-151.0,0.00023561,7]
[342906972,1732200649409,-500.0,0.00023561,2]
[342906973,1732200649419,-151.0,0.00023561,7]
[342906974,1732200649428,-851.18,0.00023561,2]
[342906975,1732200649439,-151.0,0.00023561,7]
[342906976,1732200649448,-1370.61,0.00023561,2]
[342906977,1732200649458,-1211.86,0.00023561,2]
[342906978,1732200649468,-151.0,0.00023561,7]
[342906979,1732200649478,-500.0,0.00023561,2]
[342906980,1732200649487,-151.0,0.00023561,7]
[342906981,1732200649497,-795.82,0.00023561,2]
[342906982,1732200649507,-653.45,0.00023561,2]
[342906983,1732200649517,-151.0,0.00023561,7]
[342906984,1732200649526,-1390.24,0.00023561,2]
[342906985,1732200649536,-500.0,0.00023561,2]
[342906986,1732200649546,-151.0,0.00023561,7]
[342906987,1732200649557,-500.0,0.00023561,2]
[342906988,1732200649567,-645.33,0.00023561,2]
[342906989,1732200649578,-500.0,0.00023561,2]
[342906990,1732200649587,-516.34123474,0.00023561,2]
[342906991,1732200649599,-151.0,0.00023561,7]
[342906992,1732200649609,-151.0,0.00023561,7]
[342906993,1732200649619,-500.0,0.00023561,2]
[342906994,1732200649629,-500.0,0.00023561,2]
[342906995,1732200649640,-500.0,0.00023561,2]
[342906996,1732200649650,-151.0,0.00023561,7]
[342906997,1732200649660,-500.0,0.00023561,2]
[342906998,1732200649670,-500.0,0.00023561,2]
[342906999,1732200649679,-500.0,0.00023561,2]
[342907000,1732200649689,-928.36,0.00023561,2]
[342907001,1732200649699,-151.0,0.00023561,7]
[342907002,1732200649709,-151.0,0.00023561,7]
[342907003,1732200649719,-619.54,0.00023561,2]
[342907004,1732200649728,-574.43,0.00023561,2]
[342907005,1732200649738,-656.62,0.00023561,2]
[342907006,1732200649749,-500.0,0.00023561,2]
[342907007,1732200649759,-793.51,0.00023561,2]
[342907008,1732200649770,-500.0,0.00023561,2]
[342907009,1732200649779,-151.0,0.00023561,7]
[342907010,1732200649789,-151.0,0.00023561,7]
[342907011,1732200649799,-568.25,0.00023561,2]
[342907012,1732200649808,-534.73,0.00023561,2]
[342907013,1732200649819,-597.26789771,0.00023561,2]
[342907014,1732200649829,-509.23,0.00023561,2]
[342907015,1732200649838,-1296.98,0.00023561,2]